Cogmind - Beta 16 @@@ ROGUE MODE // 2026.01.28 @ 20:22:24 Player: Carter Result: Destroyed self with Grenade Launcher Performance ------------- Evolutions (2) 1000 Regions Visited (3) 600 Robots Destroyed (39) 195 Value Destroyed (923) 923 Prototype IDs (1) 20 Alien Tech Used (0) 0 Bonus (0) 0 TOTAL SCORE: 2738 Bonus ------- None Cogmind --------- Core Integrity 0/550 Matter 28/450 Energy 100/100 System Corruption 2% Temperature Cool (0) Movement Core (250) Ox4 Location -8/Materials Parts ------- > --- POWER (1) -------- (None) > --- PROPULSION (4) --- (None) > --- UTILITY (4) ------ Medium Storage Unit Compact Matter Pod > --- WEAPON (2) ------- Grenade Launcher > --- INVENTORY (10) --- Light Ion Engine Light Ion Engine Peak State ------------ > --- POWER ------------ Heavy Ion Engine > --- PROPULSION ------- Improved Hover Unit > --- UTILITY ---------- Improved Heat Sink Medium Storage Unit Medium Storage Unit Compact Matter Pod > --- WEAPON ----------- Grenade Launcher > --- INVENTORY -------- Light Ion Engine Light Ion Engine Grenade Launcher [Rating: 14] Favorites ----------- Power Ion Engine Engine Ion Engine Power Core Light Nuclear Core Propulsion Aluminum Leg Treads Light Treads Leg Aluminum Leg Hover Unit Improved Hover Unit Utility Medium Storage Unit Device Field Recycling Unit Storage Medium Storage Unit Protection Light Armor Plating Weapon Grenade Launcher Energy Gun Small Laser Launcher Grenade Launcher Build | -11 -10 -9 -8 ------- Run | Yrd Mat Mat Mat Slots Evolved 4 | . . 2 2 Power . | . . . . Propulsion 2 | . . . 2 Utility 2 | . . 2 . Weapon . | . . . . Parts Attached 25 | 6 2 6 11 Power 5 | 1 . 2 2 Engine 4 | 1 . 2 1 Core 1 | . . . 1 Reactor . | . . . . Propulsion 6 | 2 . 1 3 Treads 1 | . . . 1 Leg 4 | 2 . 1 1 Wheel . | . . . . Hover 1 | . . . 1 Flight . | . . . . Utility 8 | 1 1 2 4 Device 3 | . . 2 1 Storage 4 | 1 1 . 2 Processor . | . . . . Hackware . | . . . . Protection 1 | . . . 1 Artifact . | . . . . Weapon 6 | 2 1 1 2 Energy Gun 2 | 2 . . . Energy Cannon . | . . . . Ballistic Gun . | . . . . Ballistic Cannon . | . . . . Launcher 4 | . 1 1 2 Special Weapon . | . . . . Impact Weapon . | . . . . Slashing Weapon . | . . . . Piercing Weapon . | . . . . Special Melee Weapon . | . . . . Unidentified Prototypes 1 | . . . 1 Parts Lost 17 | . . 6 11 Power 3 | . . 1 2 Propulsion 6 | . . 3 3 Utility 4 | . . . 4 Weapon 4 | . . 2 2 Highest Loss Streak 6 | . . 6 5 To Critical Strikes . | . . . . Average Backups 2 | . 1 2 3 Power 1 | . 1 1 2 Propulsion . | . . . . Utility . | . . . . Weapon . | . . 1 1 Tool/Special . | . . . . Unused Backups 1 | . . . 1 Power 1 | . . . 1 Propulsion . | . . . . Utility . | . . . . Weapon . | . . . . Tool/Special . | . . . . Average Slot Usage (%) 56 | . 85 55 44 Engine 9 | . 14 10 6 Leg 10 | . 28 11 . Device 6 | . . 6 10 Storage 12 | . 14 11 13 Energy Gun 5 | . 15 6 . Launcher 9 | . 12 10 7 Peak Build Rating 14 | 6 7 8 14 Average Rating 6 | 4 6 6 8 On Entrance 5 | . 6 6 8 Avg Prop Armor Cover (%) 6 | . . 8 5 Naked Turns . | . . . . Heaviest Build 36 | 12 19 36 36 Greatest Support 20 | 20 20 20 20 Greatest Overweight (x) 11 | . . 11 11 Average Overweight (x) 1 | . . 2 5 Largest Inventory Capacity 10 | 8 10 10 10 Average Capacity 9 | 6 9 10 10 Most Carried 5 | 1 2 5 4 Average Carried 2 | . 1 2 3 Final Capacity 10 | 8 10 10 10 Final Carried 4 | 1 1 4 2 Class Distribution -------------------- 93% | Mutant 6% | Scavenger-Mutant Dominant Class ---------------- Mutant | -10/Materials Mutant | -9/Materials Mutant | -8/Materials Resources | -11 -10 -9 -8 ----------- Run | Yrd Mat Mat Mat Matter Collected 538 | 141 26 180 191 Remotely . | . . . . Salvage Created 778 | . 86 338 354 Parts 60 | . 8 27 25 Haulers Intercepted 2 | . . 1 1 Recyclers Shooed 2 | . 1 1 . Parts Field Recycled . | . . . . Retrieved Matter . | . . . . Parts Self-Destructed . | . . . . Prevented . | . . . . Parts Restored . | . . . . Kills | -11 -10 -9 -8 ------- Run | Yrd Mat Mat Mat Combat Hostiles Destroyed 26 | . 3 13 10 Guns 1 | . . 1 . AOE 25 | . 3 12 10 Classes Destroyed 9 | . 2 4 3 Worker 1 | . . . 1 Builder 7 | . 1 3 3 Hauler 2 | . . 1 1 Recycler 2 | . . 1 1 Watcher 1 | . . . 1 Swarmer 10 | . . 7 3 Grunt 12 | . 3 4 5 Sentry 3 | . . 2 1 Hunter 1 | . . . 1 Best Kill Streak 8 | . 2 6 8 Combat Bots Only 6 | . 2 5 6 Max Kills in Single Turn 3 | . 1 3 3 Gunslinging . | . . . . Exploded 3 | . 1 3 3 Melee . | . . . . Uniques/NPCs Destroyed . | . . . . Combat | -11 -10 -9 -8 -------- Run | Yrd Mat Mat Mat Hostile Shots Fired 214 | . 8 65 141 Missed 74 | . 2 28 44 Hits 140 | . 6 37 97 Projectile 140 | . 6 37 97 Critical Strikes 2 | . . . 2 Part Disruptions 1 | . . 1 . Damage Taken 1964 | . 129 545 1290 Core 714 | . 37 92 585 Absorbed by Shields . | . . . . Core Remaining (%) 87 | 100 85 77 . Volleys Fired 46 | . 6 24 16 Largest 2 | . 2 2 1 Hottest 70 | . 70 70 30 Shots Fired 69 | . 11 42 16 Gun 24 | . 6 18 . Cannon . | . . . . Launcher 45 | . 5 24 16 Special . | . . . . Kinetic . | . . . . Thermal 24 | . 6 18 . Explosive 45 | . 5 24 16 Electromagnetic . | . . . . Robot Hit Streak 6 | . 3 6 6 Robot Miss Streak 4 | . 4 4 1 Penetration Max . | . . . . Secondary Targets . | . . . . Shots Hit Robots 39 | . 4 23 12 Core Hits 79 | . 11 35 33 Critical Kills . | . . . . Critical Parts Destroyed . | . . . . Critical Strikes . | . . . . Melee Attacks . | . . . . Impact . | . . . . Slashing . | . . . . Piercing . | . . . . Sneak Attacks . | . . . . Combat Hostiles . | . . . . Follow-up Attacks . | . . . . Damage Inflicted 2854 | . 414 1191 1249 Guns 101 | . 21 80 . Cannons . | . . . . Explosions 2746 | . 393 1107 1246 Melee . | . . . . Ramming 7 | . . 4 3 Kinetic . | . . . . Thermal 101 | . 21 80 . Explosive 2687 | . 393 1048 1246 Electromagnetic 59 | . . 59 . Impact . | . . . . Slashing . | . . . . Piercing . | . . . . Highest Corruption 2 | . . 1 2 Average Corruption 1 | . . 1 2 Corruption Purged . | . . . . Corruption Blocked . | . . . . Effects 5 | . . 5 . Heat Flow Errors 1 | . . 1 . Energy Discharges 1 | . . 1 . Data Loss (minor) 3 | . . 3 . Overload Shots . | . . . . Overflow Damage 61 | . 8 13 40 Projectiles . | . . . . Explosions 61 | . 8 13 40 Melee . | . . . . Knockbacks . | . . . . Impact . | . . . . Kinetic . | . . . . Secondary . | . . . . Self-Inflicted Damage 298 | . 52 160 86 Shots 17 | . 3 9 5 Rammed 4 | . . 2 2 Targets Rammed 4 | . . 2 2 Kicked . | . . . . Crushed . | . . . . Highest Temperature 211 | . 54 211 38 Average Temperature 29 | . 25 41 10 Received Heat Transfer 582 | . 42 81 459 Siege Activations . | . . . . Martial Activations . | . . . . Shielding Activations . | . . . . Robots Disrupted . | . . . . Combat Hostiles . | . . . . Robots Corrupted . | . . . . Combat Hostiles . | . . . . Parts Fried . | . . . . Impact Corruptions . | . . . . Robots Melted . | . . . . Combat Hostiles . | . . . . Parts Melted . | . . . . Heat Transferred 225 | . 50 175 . Parts Sabotaged . | . . . . Parts Stolen . | . . . . Parts Stripped . | . . . . Power Chain Reactions . | . . . . Alert | -11 -10 -9 -8 ------- Run | Yrd Mat Mat Mat Maximum Alert Level 1 | . . 1 . Low Security (%) 72 | 100 100 37 100 Level 1 27 | . . 62 . Level 2 . | . . . . Level 3 . | . . . . Level 4 . | . . . . Level 5 . | . . . . High Security . | . . . . Max Security . | . . . . Peak Influence 373 | . 58 373 186 Initial 116 | . . 8 116 Average 145 | . 23 221 131 Influence Increases 1006 | . 109 540 357 Destroy 0b10 Robot/C 520 | . 60 260 200 Destroy 0b10 Robot/NC 65 | . 5 25 35 Destroy Leader 126 | . 10 62 54 Disable Machine 105 | . . 75 30 Destroy Structure 175 | . 34 103 38 Lose Combat Pursuer 15 | . . 15 . Influence Decreases 849 | . 88 285 476 Entered New Map 173 | . . 13 160 Time Decay 506 | . 88 212 206 Lost Part 170 | . . 60 110 Squads Dispatched 4 | . . 2 2 Investigation . | . . . . Extermination . | . . . . Reinforcement 4 | . . 2 2 Assault . | . . . . Garrison . | . . . . Intercept . | . . . . Searches Triggered . | . . . . Construction Impeded 2 | . . 1 1 Haulers Reinforced . | . . . . Active Scanning Responses . | . . . . Cargo Convoy Interrupts . | . . . . Stealth | -11 -10 -9 -8 --------- Run | Yrd Mat Mat Mat Distress Signals 3 | . 1 1 1 Communications Jammed . | . . . . Distress Signals . | . . . . Times Spotted 42 | . 5 20 17 Peak Tracking Total 7 | . 3 7 7 Tactical Retreats 1 | . . 1 . Traps | -11 -10 -9 -8 ------- Run | Yrd Mat Mat Mat Traps Triggered . | . . . . Indirectly . | . . . . Trap Hack Attempts . | . . . . Triggered . | . . . . Disarmed . | . . . . Reprogrammed . | . . . . Reused . | . . . . Traps Extracted . | . . . . Installed . | . . . . Triggered . | . . . . Machines | -11 -10 -9 -8 ---------- Run | Yrd Mat Mat Mat Machines Disabled 7 | . . 5 2 Max in Single Turn 2 | . . 2 2 Machines Repaired . | . . . . Machines Dismantled . | . . . . Machines Sabotaged . | . . . . Overloaded Fab Kills . | . . . . Hacking | -11 -10 -9 -8 --------- Run | Yrd Mat Mat Mat Machines Accessed 1 | . 1 . . Terminals 1 | . 1 . . Fabricators . | . . . . Repair Stations . | . . . . Recycling Units . | . . . . Scanalyzers . | . . . . Garrison Access . | . . . . Total Hacks 1 | . 1 . . Successful . | . . . . Failed 1 | . 1 . . Catastrophic . | . . . . Database Lockouts . | . . . . Manual . | . . . . Terminals 1 | . 1 . . Fabricators . | . . . . Repair Stations . | . . . . Recycling Units . | . . . . Scanalyzers . | . . . . Garrison Access . | . . . . Terminal Hacks . | . . . . Fabricator Hacks . | . . . . Repair Station Hacks . | . . . . Recycling Unit Hacks . | . . . . Scanalyzer . | . . . . Garrison Access Hacks . | . . . . Unauthorized Hacks . | . . . . Terminals . | . . . . Fabricators . | . . . . Repair Stations . | . . . . Recycling Units . | . . . . Scanalyzers . | . . . . Garrison Access . | . . . . Data Cores Recovered . | . . . . Used . | . . . . Hacking Detections 1 | . 1 . . Full Trace Events . | . . . . Feedback Events . | . . . . Feedback Blocked . | . . . . Robot Schematics Acquired . | . . . . Robots Built . | . . . . Authchips . | . . . . Time . | . . . . Total Robot Build Rating . | . . . . Part Schematics Acquired . | . . . . Parts Built . | . . . . Authchips . | . . . . Time . | . . . . Total Part Build Rating . | . . . . Part Studies Acquired . | . . . . Parts Repaired . | . . . . Time . | . . . . Parts Recycled . | . . . . Recycled Matter . | . . . . Retrieved Matter . | . . . . Retrieved Components . | . . . . Parts Scanalyzed . | . . . . Part Schematics Acquired . | . . . . Parts Damaged . | . . . . Bothacking | -11 -10 -9 -8 ------------ Run | Yrd Mat Mat Mat Used RIF Installer . | . . . . Robots Hacked . | . . . . Non-combat . | . . . . Combat . | . . . . Robot Hacks Applied . | . . . . Relay Couplers Released . | . . . . Fabnet Peak Effective % . | . . . . Robots Rewired . | . . . . Allies Hacked . | . . . . Hacks Repelled . | . . . . Allies | -11 -10 -9 -8 -------- Run | Yrd Mat Mat Mat Total Allies . | . . . . Largest Group . | . . . . Highest-Rated Group . | . . . . Highest-Rated Ally . | . . . . Total Orders . | . . . . Ally Attacks . | . . . . Total Damage . | . . . . Kills . | . . . . Allies Corrupted . | . . . . Allies Melted . | . . . . Intel | -11 -10 -9 -8 ------- Run | Yrd Mat Mat Mat Active Infowar (turns) . | . . . . Robot Analysis Total . | . . . . Derelict Logs Recovered . | . . . . Drone Launches . | . . . . Drone Recoveries . | . . . . Exploration | -11 -10 -9 -8 ------------- Run | Yrd Mat Mat Mat Turns Passed 1265 | 59 219 549 438 Spaces Moved 538 | 43 166 221 108 Core 106 | 3 . 49 54 Treads 24 | . . . 24 Legs 384 | 40 166 172 6 Wheels . | . . . . Hover 24 | . . . 24 Flight . | . . . . Fastest Speed 50 | 50 120 120 240 Average Speed 204 | 115 120 210 357 Slowest Speed 600 | 120 120 600 600 Overloaded Moves . | . . . . Propulsion Burnouts . | . . . . Robots Hopped . | . . . . Potential Cave-ins . | . . . . Cave-ins Triggered . | . . . . Exploration Rate (%) 19 | 3 36 28 11 Regions Visited 3 Branch Regions . Pre-discovered Areas . | . . . . Known Exits Taken . | . . . . Unknown Exits Taken 3 | 1 1 1 . Scrap Searched . | . . . . Spaces Dug . | . . . . Terrain Destroyed 199 | . 32 119 48 Melee . | . . . . Projectile . | . . . . AOE 199 | . 32 119 48 Terrain Rammed . | . . . . Walls Destroyed . | . . . . Machines Disabled . | . . . . Actions | -11 -10 -9 -8 --------- Run | Yrd Mat Mat Mat Total 618 | 49 175 256 138 Wait 1 | . . . 1 Move 535 | 42 165 220 108 Hop . | . . . . Pick Up 4 | 1 . 3 . Fast Attach 17 | 6 1 3 7 Attach 4 | . . 2 2 Detach 1 | . 1 . . Swap 5 | . 1 2 2 Drop 1 | . 1 . . Fire 46 | . 6 24 16 Melee . | . . . . Ram 4 | . . 2 2 Kick . | . . . . Crush . | . . . . Escape Stasis . | . . . . Rewire . | . . . . Trap . | . . . . Miscellaneous . | . . . . Route ------- -11/Scrapyard -10/Materials -9/Materials -8/Materials History --------- Turn | Location | Event 4 | -11/Scrapyard | Discovered new exit (range 16) 60 | -11/Scrapyard | Entered Materials 259 | -10/Materials | Discovered new exit (range 12) 279 | -10/Materials | Entered another Materials area 279 | -9/Materials | Evolved 2 slots: Utility x2 317 | -9/Materials | Build established: Mutant 522 | -9/Materials | Discovered new exit (range 15) 607 | -9/Materials | Lost 6 parts (1p3n2w) 828 | -9/Materials | Entered another Materials area 828 | -8/Materials | Evolved 2 slots: Propulsion x2 975 | -8/Materials | Core integrity fell below 50% 1014 | -8/Materials | Lost 4 parts (1n2u1w) 1253 | -8/Materials | Core integrity fell below 20% 1266 | -8/Materials | Destroyed self with Grenade Launcher Last Messages --------------- 01254_ K-01 Serf collects debris. 01254_ U-05 Engineer lays Concrete. 01257_ K-01 Serf collects debris. 01258_ U-05 Engineer lays Concrete. 01259_ U-05 Engineer builds a Wall. 01260_ U-05 Engineer lays Concrete. 01261_ The unstable cave ceiling collapses. 01261_ Lgt. Treads destroyed. 01261_ U-05 Engineer lays Concrete. 01261_ K-01 Serf collects debris. 01262_ Acquired 20 matter. 01263_ U-05 Engineer builds a Door. 01263_ U-05 Engineer lays Concrete. 01263_ U-05 Engineer builds a Wall. 01264_ U-05 Engineer lays Concrete. 01266_ K-01 Serf collects debris. 01266_ U-05 Engineer lays Concrete. 01266_ U-05 Engineer destroyed. 01266_ Hvy. Ion Engine destroyed. 01266_ Destroyed Hvy. Ion Engine. Map ----- +----------------------------------------------------+ | | | | | | | | | | | | | | | | | | | | | | | | | | | | | ???????????????????###########???????????????????? | | ???????????????????# #???????????????????? | | ???????????????????## "" #???????????????????? | | ?????????????????#### " #???????????????????? | | ?????????????????# +[ #############???##### | | ?????????????????#### %! ** + #???# # | | ???????????????????## * ## #???# # | | ???????????????????## ## #???# # | | ???????????????????## " ## #???# # | | ???????????????????## ## #???# # | | ????????????????????## +## ## ##### # | | ????????????????????# # @%u = *** # | | ????????????????????# g! =%* * * # | | ????????????????????# k < **"" # | | ????????????????????## Y Y << "" # | | ?????????????????????# u % " | # | | ???????????????? % ! !%!# | | ??????????????? [ *!# | | ?????????????? ###"""T"""####### # | | ??????????????? #?##### ## ## # | | ?????????????? #????############ # | | ????????????? #????????????? # # | | ?????????????? #????????????"" # # | | ????????????? ##+#???????????""" # # | | ?????????????? ########^ ?# ?????????? """ + # | | ?????????????? ????????# ?# ??????????? # # | | ???????????????????????# ^?# /???????????? # # | | ???????????????????????# ?? ???????????? ?# # | | ??????????????????????? ?? "???????????? ?# # | | ????????????????????????! ?? ????????????? ??+ # | | ?????????????????????????????????????????????# # | | ?????????????????????????????????????????????? # | | ?????????????????????????????????????????????? # | | ?????????????????????????????????????????????? ? | | ?????????????????????????????????????????????????? | | ?????????????????????????????????????????????????? | +----------------------------------------------------+ Best States ------------- Heat Dissipation 45 Energy Generation 14 Energy Capacity 280 Matter Stores 181 Matter Capacity 450 Sight Range 16 Terrain Scan Density 10 Armor Coverage 150 Evasion (%) 55 Recoil Reduction 1 Item Schematics ----------------- None Robot Schematics ------------------ None Fabricated ------------ Nothing Repaired ---------- Nothing Studied --------- None Alien Tech Used ----------------- None Achievements -------------- None Challenges ------------ None Game ------ Seed SpikedOmegaWarhead Manual? 0 Play Time 00:12:30 Cumulative 8.6 hours Start 2026.01.28 @ 20:13:09 End 2026.01.28 @ 20:22:24 Sessions 1 Manual Loads 0 Difficulty Rogue Special Mode None Game No. 17 Rogue 17 Adventurer 0 Explorer 0 Win Type - Total 0 Types 0/0/0/0/0/0/0/0/0/0 Lore% 3 Gallery% 16 Achievement% 11 Wizard Run 0 Options --------- Layout 2 ASCII 0 Keyboard 1 Movement Vi Keybinds 0 Fullscreen 1 Font 24/Smallcaps Map View 50x44 Zoom Use 33% Tactical HUD 1 Map Filters NONE Filters NONE Steam 1 RUN: 7b0e0c53-1404-46be-9f0d-9271a8101402